[Event "Early-Titled-Tuesday-Blitz-April-23-2024"]
[Site "Chess.com"]
[Date "2024.04.23"]
[Round "10"]
[White "marcodobrikov"]
[Black "Aradhya2000"]
[Result "0-1"]
[WhiteElo "2697"]
[BlackElo "2850"]
[TimeControl "180+1"]
[EndTime "10:01:50 PDT"]
[Termination "Aradhya2000 won by resignation"]

1. d4 {[%clk 0:03:00.9]} 1... d5 {[%clk 0:03:00]} 2. Bf4 {[%clk 0:03:01.5]} 2...
Nf6 {[%clk 0:02:59.4]} 3. e3 {[%clk 0:03:01.5]} 3... c5 {[%clk 0:02:59.5]} 4.
Nf3 {[%clk 0:02:58.1]} 4... Qb6 {[%clk 0:02:55.3]} 5. Nc3 {[%clk 0:02:58.6]}
5... Bd7 {[%clk 0:02:52.3]} 6. Qd2 {[%clk 0:02:39.6]} 6... e6 {[%clk 0:02:50.3]}
7. Be2 {[%clk 0:02:39]} 7... Be7 {[%clk 0:02:44]} 8. O-O {[%clk 0:02:38.9]} 8...
O-O {[%clk 0:02:44.6]} 9. a3 {[%clk 0:02:36.9]} 9... cxd4 {[%clk 0:02:37.7]} 10.
exd4 {[%clk 0:02:36.2]} 10... Nc6 {[%clk 0:02:38.1]} 11. b4 {[%clk 0:02:35.8]}
11... Rfc8 {[%clk 0:02:33]} 12. Na4 {[%clk 0:02:34.5]} 12... Qd8 {[%clk
0:02:31.8]} 13. Nc5 {[%clk 0:02:34.6]} 13... b6 {[%clk 0:02:31.4]} 14. Nxd7
{[%clk 0:02:18.2]} 14... Qxd7 {[%clk 0:02:31.8]} 15. Bb5 {[%clk 0:02:16.2]}
15... Qb7 {[%clk 0:02:29.1]} 16. Qe2 {[%clk 0:02:12]} 16... a6 {[%clk 0:02:29]}
17. Bd3 {[%clk 0:02:12.7]} 17... b5 {[%clk 0:02:24.2]} 18. c3 {[%clk 0:02:12.2]}
18... Nb8 {[%clk 0:02:09.1]} 19. Rfc1 {[%clk 0:02:01.7]} 19... Nbd7 {[%clk
0:02:08.3]} 20. a4 {[%clk 0:02:01.7]} 20... Nb6 {[%clk 0:01:52.3]} 21. axb5
{[%clk 0:02:00.6]} 21... axb5 {[%clk 0:01:53.2]} 22. Bxb5 {[%clk 0:02:00.2]}
22... Rxa1 {[%clk 0:01:51.8]} 23. Rxa1 {[%clk 0:01:58.9]} 23... Rxc3 {[%clk
0:01:52.4]} 24. Ne5 {[%clk 0:01:50.1]} 24... Bxb4 {[%clk 0:01:37.4]} 25. Qb2
{[%clk 0:01:28.1]} 25... Qe7 {[%clk 0:01:18.2]} 26. Nc6 {[%clk 0:01:14.3]} 26...
Rxc6 {[%clk 0:01:17.6]} 27. Bxc6 {[%clk 0:01:15.2]} 27... h6 {[%clk 0:01:18.1]}
28. Rb1 {[%clk 0:01:09.7]} 28... Ba5 {[%clk 0:01:06.4]} 29. Qa2 {[%clk
0:01:00.3]} 29... Nc4 {[%clk 0:01:06.6]} 30. Bb5 {[%clk 0:00:58.4]} 30... Bc7
{[%clk 0:00:25.1]} 31. Bxc7 {[%clk 0:00:47.3]} 31... Qxc7 {[%clk 0:00:25]} 32.
Rc1 {[%clk 0:00:48]} 32... Qf4 {[%clk 0:00:24.2]} 33. Qb1 {[%clk 0:00:36.7]}
33... Ng4 {[%clk 0:00:09.8]} 34. Bxc4 {[%clk 0:00:37.1]} 34... Qxf2+ {[%clk
0:00:09.9]} 35. Kh1 {[%clk 0:00:37.2]} 35... Qh4 {[%clk 0:00:10.6]} 36. Qb8+
{[%clk 0:00:30.7]} 36... Kh7 {[%clk 0:00:09.9]} 37. Bd3+ {[%clk 0:00:26.6]}
37... g6 {[%clk 0:00:10.4]} 38. Rf1 {[%clk 0:00:17]} 38... Nf2+ {[%clk
0:00:09.8]} 39. Rxf2 {[%clk 0:00:16.7]} 39... Qxf2 {[%clk 0:00:10.7]} 40. Qg3
{[%clk 0:00:15.9]} 40... Qxd4 {[%clk 0:00:08.8]} 41. h3 {[%clk 0:00:15.4]} 41...
Kg7 {[%clk 0:00:08.2]} 42. Qf3 {[%clk 0:00:15.1]} 42... e5 {[%clk 0:00:08.3]}
43. Be2 {[%clk 0:00:14.6]} 43... e4 {[%clk 0:00:08.7]} 44. Qf4 {[%clk
0:00:14.2]} 44... Qf6 {[%clk 0:00:07.2]} 45. Qc7 {[%clk 0:00:13.5]} 45... d4
{[%clk 0:00:06.9]} 46. Bc4 {[%clk 0:00:12.1]} 46... d3 {[%clk 0:00:07]} 47. Qd7
{[%clk 0:00:11.4]} 47... Qf1+ {[%clk 0:00:06.6]} 48. Kh2 {[%clk 0:00:11.6]}
48... Qf4+ {[%clk 0:00:07.3]} 49. Kg1 {[%clk 0:00:12.1]} 49... Qc1+ {[%clk
0:00:05]} 50. Kf2 {[%clk 0:00:10.9]} 50... Qxc4 {[%clk 0:00:05.6]} 51. Ke3
{[%clk 0:00:08.7]} 51... Qc2 {[%clk 0:00:04.7]} 52. Qd4+ {[%clk 0:00:07.8]}
52... Kh7 {[%clk 0:00:05.1]} 53. Qf6 {[%clk 0:00:08.1]} 53... Qe2+ {[%clk
0:00:05]} 54. Kd4 {[%clk 0:00:06.9]} 54... Kg8 {[%clk 0:00:05.4]} 55. Qd8+
{[%clk 0:00:05.8]} 55... Kg7 {[%clk 0:00:05.9]} 56. Kc5 {[%clk 0:00:05.7]} 56...
d2 {[%clk 0:00:05.9]} 57. Qd4+ {[%clk 0:00:06.3]} 57... Kh7 {[%clk 0:00:06.3]}
58. Qf6 {[%clk 0:00:07]} 58... Qe3+ {[%clk 0:00:06.3]} 59. Kc4 {[%clk
0:00:06.8]} 59... Qd3+ {[%clk 0:00:06.4]} 60. Kb4 {[%clk 0:00:07.4]} 60... Qd7
{[%clk 0:00:06.3]} 61. Qxf7+ {[%clk 0:00:06.4]} 61... Qxf7 {[%clk 0:00:06]} 0-1

[Event "Early-Titled-Tuesday-Blitz-April-23-2024"]
[Site "Chess.com"]
[Date "2024.04.23"]
[Round "10"]
[White "Jojo_898"]
[Black "Barath1308"]
[Result "1-0"]
[WhiteElo "2461"]
[BlackElo "2535"]
[TimeControl "180+1"]
[EndTime "10:01:51 PDT"]
[Termination "Jojo_898 won on time"]

1. e4 {[%clk 0:03:00.9]} 1... c5 {[%clk 0:02:59.4]} 2. Nf3 {[%clk 0:03:00.8]}
2... d6 {[%clk 0:02:57]} 3. c3 {[%clk 0:03:00.2]} 3... Nf6 {[%clk 0:02:49.1]} 4.
Bd3 {[%clk 0:02:59.4]} 4... g6 {[%clk 0:02:47.5]} 5. h3 {[%clk 0:02:58.9]} 5...
Bg7 {[%clk 0:02:47]} 6. O-O {[%clk 0:02:58.8]} 6... O-O {[%clk 0:02:46.8]} 7.
Bc2 {[%clk 0:02:58.3]} 7... Nc6 {[%clk 0:02:47]} 8. d4 {[%clk 0:02:58.1]} 8...
cxd4 {[%clk 0:02:45.9]} 9. cxd4 {[%clk 0:02:59]} 9... e5 {[%clk 0:02:44.4]} 10.
Be3 {[%clk 0:02:50]} 10... exd4 {[%clk 0:02:41]} 11. Nxd4 {[%clk 0:02:49.5]}
11... Re8 {[%clk 0:02:35.6]} 12. Nc3 {[%clk 0:02:49.1]} 12... h6 {[%clk
0:02:32.4]} 13. Ndb5 {[%clk 0:02:44.6]} 13... Bf8 {[%clk 0:02:27.5]} 14. Bf4
{[%clk 0:02:42.4]} 14... Ne5 {[%clk 0:02:01]} 15. Qd2 {[%clk 0:02:41.7]} 15...
a6 {[%clk 0:02:00.3]} 16. Nd4 {[%clk 0:02:37.3]} 16... Kh7 {[%clk 0:01:57.5]}
17. Rad1 {[%clk 0:02:34.8]} 17... Bd7 {[%clk 0:01:52.4]} 18. Bb3 {[%clk
0:02:26]} 18... Qe7 {[%clk 0:01:39.8]} 19. Nc2 {[%clk 0:02:19.1]} 19... Bc6
{[%clk 0:01:33.9]} 20. Rfe1 {[%clk 0:02:15.6]} 20... Rad8 {[%clk 0:01:32.7]} 21.
Nb4 {[%clk 0:02:15]} 21... Qc7 {[%clk 0:01:29.1]} 22. Nbd5 {[%clk 0:02:09.4]}
22... Bxd5 {[%clk 0:01:26.4]} 23. Nxd5 {[%clk 0:02:07.8]} 23... Nxd5 {[%clk
0:01:26.5]} 24. Bxd5 {[%clk 0:02:08.4]} 24... Bg7 {[%clk 0:01:21.6]} 25. Rc1
{[%clk 0:02:02.2]} 25... Nc6 {[%clk 0:01:18.5]} 26. Rc2 {[%clk 0:01:54.1]} 26...
Qe7 {[%clk 0:01:00.4]} 27. Bxc6 {[%clk 0:01:49.8]} 27... bxc6 {[%clk 0:01:00.2]}
28. Rxc6 {[%clk 0:01:50.5]} 28... d5 {[%clk 0:00:56.1]} 29. e5 {[%clk
0:01:44.1]} 29... f6 {[%clk 0:00:52.6]} 30. e6 {[%clk 0:01:39.2]} 30... Qb7
{[%clk 0:00:48.9]} 31. Rc7 {[%clk 0:01:34.2]} 31... Qb6 {[%clk 0:00:41.1]} 32.
Rec1 {[%clk 0:01:25.7]} 32... g5 {[%clk 0:00:31.9]} 33. Qd3+ {[%clk 0:01:24.1]}
33... Kh8 {[%clk 0:00:30.9]} 34. Qg6 {[%clk 0:01:15.4]} 34... Rg8 {[%clk
0:00:30.9]} 35. e7 {[%clk 0:01:10.9]} 35... Rde8 {[%clk 0:00:27.9]} 36. Be3
{[%clk 0:01:10.7]} 36... Qe6 {[%clk 0:00:27.5]} 37. Bc5 {[%clk 0:01:08.8]} 37...
Rc8 {[%clk 0:00:19.7]} 38. Bb4 {[%clk 0:00:51.1]} 38... Rxc7 {[%clk 0:00:16.9]}
39. Rxc7 {[%clk 0:00:52]} 39... d4 {[%clk 0:00:16.6]} 40. Qd3 {[%clk 0:00:47]}
40... Qxa2 {[%clk 0:00:14.7]} 41. Ba3 {[%clk 0:00:36]} 41... Qd5 {[%clk
0:00:13.8]} 42. Rc5 {[%clk 0:00:33.1]} 42... Qe6 {[%clk 0:00:11]} 43. Ra5 {[%clk
0:00:29.5]} 43... f5 {[%clk 0:00:10.2]} 44. Rxa6 {[%clk 0:00:28.8]} 44... Qe1+
{[%clk 0:00:09.4]} 45. Kh2 {[%clk 0:00:29.5]} 45... Qe5+ {[%clk 0:00:09.6]} 46.
g3 {[%clk 0:00:17.2]} 46... Qe1 {[%clk 0:00:09.4]} 47. Rd6 {[%clk 0:00:13.3]}
47... Qxf2+ {[%clk 0:00:09]} 48. Kh1 {[%clk 0:00:13]} 48... Qe1+ {[%clk
0:00:08.3]} 49. Kg2 {[%clk 0:00:13.7]} 49... Qe5 {[%clk 0:00:06.1]} 50. Rd8
{[%clk 0:00:13.4]} 50... Kh7 {[%clk 0:00:04.3]} 51. Qc4 {[%clk 0:00:10.8]} 51...
Rh8 {[%clk 0:00:02.6]} 52. Rxh8+ {[%clk 0:00:10.1]} 52... Kxh8 {[%clk
0:00:02.3]} 53. Qc8+ {[%clk 0:00:10.7]} 53... Kh7 {[%clk 0:00:02.1]} 54. e8=Q
{[%clk 0:00:11.6]} 54... Qd5+ {[%clk 0:00:01.8]} 55. Kf2 {[%clk 0:00:11.7]}
55... d3 {[%clk 0:00:01.1]} 56. Qcd7 {[%clk 0:00:09.8]} 1-0

[Event "Early-Titled-Tuesday-Blitz-April-23-2024"]
[Site "Chess.com"]
[Date "2024.04.23"]
[Round "10"]
[White "HATilay"]
[Black "viviania"]
[Result "0-1"]
[WhiteElo "2648"]
[BlackElo "2899"]
[TimeControl "180+1"]
[EndTime "10:01:53 PDT"]
[Termination "viviania won by resignation"]

1. e4 {[%clk 0:03:00.9]} 1... e5 {[%clk 0:02:59.3]} 2. Nf3 {[%clk 0:02:59.2]}
2... d5 {[%clk 0:02:59.2]} 3. Nxe5 {[%clk 0:02:58.4]} 3... Bd6 {[%clk
0:02:58.4]} 4. d4 {[%clk 0:02:59]} 4... dxe4 {[%clk 0:02:58]} 5. Bc4 {[%clk
0:02:59.3]} 5... Bxe5 {[%clk 0:02:56.5]} 6. Qh5 {[%clk 0:02:59.9]} 6... Qe7
{[%clk 0:02:48.6]} 7. Qxe5 {[%clk 0:02:59.6]} 7... Qxe5 {[%clk 0:02:46.4]} 8.
dxe5 {[%clk 0:03:00.5]} 8... Nc6 {[%clk 0:02:46.4]} 9. Nc3 {[%clk 0:02:59.6]}
9... Nxe5 {[%clk 0:02:43.8]} 10. Bb3 {[%clk 0:02:39.8]} 10... Ne7 {[%clk
0:02:11.8]} 11. Nxe4 {[%clk 0:02:24.8]} 11... Bf5 {[%clk 0:02:03.8]} 12. Ng3
{[%clk 0:02:16.3]} 12... Be6 {[%clk 0:02:01.1]} 13. Bxe6 {[%clk 0:02:15.8]}
13... fxe6 {[%clk 0:02:01.4]} 14. O-O {[%clk 0:02:15.7]} 14... Kf7 {[%clk
0:01:17.1]} 15. Re1 {[%clk 0:02:08.2]} 15... N5c6 {[%clk 0:01:16.8]} 16. Bg5
{[%clk 0:00:54.1]} 16... Nd5 {[%clk 0:01:00.3]} 17. Ne4 {[%clk 0:00:53.6]} 17...
b6 {[%clk 0:00:53.7]} 18. Bh4 {[%clk 0:00:50.4]} 18... h6 {[%clk 0:00:49.6]} 19.
Bg3 {[%clk 0:00:50.6]} 19... Rhd8 {[%clk 0:00:43]} 20. a3 {[%clk 0:00:33.8]}
20... Rd7 {[%clk 0:00:40.1]} 21. Rad1 {[%clk 0:00:23.9]} 21... Rad8 {[%clk
0:00:39.7]} 22. c4 {[%clk 0:00:23.9]} 22... Nf6 {[%clk 0:00:30.9]} 23. Rxd7+
{[%clk 0:00:22.3]} 23... Rxd7 {[%clk 0:00:31.2]} 24. Nc3 {[%clk 0:00:20.3]}
24... Na5 {[%clk 0:00:24.8]} 25. c5 {[%clk 0:00:13.8]} 25... bxc5 {[%clk
0:00:24.7]} 26. Nb5 {[%clk 0:00:11.6]} 26... Nd5 {[%clk 0:00:18.7]} 27. Rd1
{[%clk 0:00:11.9]} 27... Ke7 {[%clk 0:00:12.6]} 28. Kf1 {[%clk 0:00:07.7]} 28...
a6 {[%clk 0:00:11.4]} 29. Nc3 {[%clk 0:00:07.4]} 29... Nxc3 {[%clk 0:00:11]} 30.
Rxd7+ {[%clk 0:00:07.6]} 30... Kxd7 {[%clk 0:00:11.2]} 31. bxc3 {[%clk
0:00:08.5]} 31... Nc4 {[%clk 0:00:11.4]} 32. a4 {[%clk 0:00:08.5]} 32... Nb6
{[%clk 0:00:11.3]} 33. Ke2 {[%clk 0:00:08.3]} 33... Nxa4 {[%clk 0:00:11.3]} 34.
Kd3 {[%clk 0:00:09.2]} 34... Nb2+ {[%clk 0:00:10.7]} 35. Kc2 {[%clk 0:00:06.2]}
35... Nc4 {[%clk 0:00:10.7]} 36. Kb3 {[%clk 0:00:07.1]} 36... Nd6 {[%clk
0:00:10.3]} 37. Be5 {[%clk 0:00:07]} 37... g6 {[%clk 0:00:09.9]} 38. Bg7 {[%clk
0:00:07]} 38... h5 {[%clk 0:00:09.5]} 39. Bf8 {[%clk 0:00:07.9]} 39... Kc6
{[%clk 0:00:09.5]} 40. Be7 {[%clk 0:00:08]} 40... Kb5 {[%clk 0:00:09.3]} 41. Bf8
{[%clk 0:00:08.5]} 41... a5 {[%clk 0:00:09.4]} 42. f3 {[%clk 0:00:07.8]} 42...
a4+ {[%clk 0:00:09.4]} 43. Kb2 {[%clk 0:00:08.2]} 43... Kc4 {[%clk 0:00:09.3]}
44. Be7 {[%clk 0:00:06.5]} 44... Nb5 {[%clk 0:00:09.1]} 45. Bf6 {[%clk
0:00:06.2]} 45... a3+ {[%clk 0:00:08.3]} 46. Kc2 {[%clk 0:00:06.7]} 46... a2
{[%clk 0:00:07.8]} 47. Kb2 {[%clk 0:00:07.3]} 47... Nxc3 {[%clk 0:00:07.9]} 48.
h4 {[%clk 0:00:05.7]} 48... c6 {[%clk 0:00:07.6]} 49. Bg7 {[%clk 0:00:05.3]}
49... Nd5 {[%clk 0:00:06]} 50. Kxa2 {[%clk 0:00:05.7]} 50... Kd3 {[%clk
0:00:06.3]} 51. Kb3 {[%clk 0:00:05.7]} 51... c4+ {[%clk 0:00:06.5]} 52. Kb2
{[%clk 0:00:06.2]} 52... c3+ {[%clk 0:00:06.8]} 53. Kc1 {[%clk 0:00:06.8]} 53...
Nb4 {[%clk 0:00:06.6]} 54. Bh6 {[%clk 0:00:07.4]} 54... c5 {[%clk 0:00:05.6]}
55. g4 {[%clk 0:00:07.1]} 55... c4 {[%clk 0:00:05.1]} 56. gxh5 {[%clk
0:00:07.5]} 56... gxh5 {[%clk 0:00:05.2]} 57. Bg5 {[%clk 0:00:08.2]} 57... c2
{[%clk 0:00:04.4]} 58. Bh6 {[%clk 0:00:08.1]} 58... Na2+ {[%clk 0:00:04.1]} 59.
Kb2 {[%clk 0:00:08.4]} 59... c1=Q+ {[%clk 0:00:03.7]} 60. Bxc1 {[%clk
0:00:08.3]} 60... Nxc1 {[%clk 0:00:03.3]} 61. Kxc1 {[%clk 0:00:09.2]} 61... c3
{[%clk 0:00:03.6]} 62. Kd1 {[%clk 0:00:09.7]} 62... c2+ {[%clk 0:00:03.2]} 63.
Kc1 {[%clk 0:00:10.1]} 63... Ke3 {[%clk 0:00:03.5]} 64. Kxc2 {[%clk 0:00:09.9]}
64... Kxf3 {[%clk 0:00:03.9]} 65. Kd3 {[%clk 0:00:10.8]} 65... e5 {[%clk
0:00:04.2]} 66. Kd2 {[%clk 0:00:11.2]} 66... e4 {[%clk 0:00:04.1]} 67. Ke1
{[%clk 0:00:12.1]} 67... Ke3 {[%clk 0:00:04.5]} 68. Kf1 {[%clk 0:00:12.4]} 68...
Kd2 {[%clk 0:00:04.7]} 69. Kg2 {[%clk 0:00:13]} 69... e3 {[%clk 0:00:05]} 70.
Kf3 {[%clk 0:00:13.9]} 0-1

[Event "Early-Titled-Tuesday-Blitz-April-23-2024"]
[Site "Chess.com"]
[Date "2024.04.23"]
[Round "10"]
[White "scarabee43"]
[Black "jk13"]
[Result "1-0"]
[WhiteElo "2837"]
[BlackElo "2695"]
[TimeControl "180+1"]
[EndTime "10:02:05 PDT"]
[Termination "scarabee43 won by resignation"]

1. Nf3 {[%clk 0:03:00.9]} 1... d5 {[%clk 0:02:58.4]} 2. e3 {[%clk 0:03:00.9]}
2... e6 {[%clk 0:02:58.9]} 3. c4 {[%clk 0:03:01.1]} 3... Nf6 {[%clk 0:02:59.8]}
4. b3 {[%clk 0:03:01.3]} 4... Be7 {[%clk 0:02:59.1]} 5. Bb2 {[%clk 0:03:01.8]}
5... O-O {[%clk 0:03:00]} 6. Nc3 {[%clk 0:03:00.8]} 6... b6 {[%clk 0:02:58.7]}
7. Be2 {[%clk 0:03:00.9]} 7... Bb7 {[%clk 0:02:58.3]} 8. O-O {[%clk 0:03:01.6]}
8... c5 {[%clk 0:02:57.9]} 9. cxd5 {[%clk 0:02:59.9]} 9... Nxd5 {[%clk
0:02:57.7]} 10. Nxd5 {[%clk 0:02:45.4]} 10... Bxd5 {[%clk 0:02:57.7]} 11. Qc2
{[%clk 0:02:45.4]} 11... Nc6 {[%clk 0:02:56.2]} 12. Rad1 {[%clk 0:02:44.7]}
12... Bf6 {[%clk 0:02:52.9]} 13. d4 {[%clk 0:02:43]} 13... cxd4 {[%clk
0:02:46.6]} 14. Nxd4 {[%clk 0:02:42.7]} 14... Nxd4 {[%clk 0:02:46]} 15. Bxd4
{[%clk 0:02:43]} 15... Bxd4 {[%clk 0:02:44.1]} 16. Rxd4 {[%clk 0:02:42.7]} 16...
Rc8 {[%clk 0:02:41.1]} 17. Qb1 {[%clk 0:02:33.9]} 17... Qc7 {[%clk 0:02:37.2]}
18. Bd3 {[%clk 0:02:20]} 18... h6 {[%clk 0:02:33.6]} 19. Ba6 {[%clk 0:02:20]}
19... Bb7 {[%clk 0:02:18.9]} 20. Bxb7 {[%clk 0:02:16.5]} 20... Qxb7 {[%clk
0:02:19.1]} 21. Rfd1 {[%clk 0:02:17.1]} 21... Rc7 {[%clk 0:02:13.3]} 22. Rd8
{[%clk 0:02:14.9]} 22... Qc6 {[%clk 0:02:04.5]} 23. h4 {[%clk 0:02:05.1]} 23...
h5 {[%clk 0:01:59.3]} 24. Qb2 {[%clk 0:01:50.2]} 24... Qc5 {[%clk 0:01:46.8]}
25. b4 {[%clk 0:01:34.5]} 25... Qc4 {[%clk 0:01:42.7]} 26. Qe5 {[%clk
0:01:31.2]} 26... Rc8 {[%clk 0:01:32]} 27. R8d4 {[%clk 0:01:23.7]} 27... Qxa2
{[%clk 0:01:25.1]} 28. Qxh5 {[%clk 0:01:24.2]} 28... Rc4 {[%clk 0:01:20.3]} 29.
Rd8 {[%clk 0:01:20.9]} 29... Rc8 {[%clk 0:01:15.5]} 30. R8d2 {[%clk 0:01:12.1]}
30... Qb3 {[%clk 0:01:11.2]} 31. Rd4 {[%clk 0:01:11.6]} 31... Rc4 {[%clk
0:01:03.4]} 32. Qg4 {[%clk 0:01:03.8]} 32... Rxd4 {[%clk 0:00:57.2]} 33. Rxd4
{[%clk 0:01:04.4]} 33... a5 {[%clk 0:00:54]} 34. bxa5 {[%clk 0:01:03.5]} 34...
bxa5 {[%clk 0:00:54.9]} 35. h5 {[%clk 0:01:03.2]} 35... Rc8 {[%clk 0:00:39.7]}
36. Qg5 {[%clk 0:00:49.5]} 36... Qc3 {[%clk 0:00:21.9]} 37. h6 {[%clk
0:00:46.2]} 37... Qc1+ {[%clk 0:00:16.1]} 38. Kh2 {[%clk 0:00:45.9]} 38... Qc7+
{[%clk 0:00:17]} 39. g3 {[%clk 0:00:34.8]} 39... f6 {[%clk 0:00:16.4]} 40. Qg6
{[%clk 0:00:35.3]} 40... Rf8 {[%clk 0:00:15.1]} 41. Rg4 {[%clk 0:00:32.7]} 41...
Rf7 {[%clk 0:00:15.5]} 42. hxg7 {[%clk 0:00:31.8]} 42... Qe7 {[%clk 0:00:13.8]}
43. Rc4 {[%clk 0:00:26]} 43... Qd7 {[%clk 0:00:11.7]} 44. Rd4 {[%clk 0:00:22]}
44... Qe7 {[%clk 0:00:11.3]} 45. Qc2 {[%clk 0:00:12.6]} 45... Kxg7 {[%clk
0:00:06.1]} 46. Rg4+ {[%clk 0:00:12]} 46... Kh8 {[%clk 0:00:05.1]} 47. Rh4+
{[%clk 0:00:09.8]} 47... Rh7 {[%clk 0:00:05.2]} 48. Qc8+ {[%clk 0:00:08]} 48...
Kg7 {[%clk 0:00:05.5]} 49. Rxh7+ {[%clk 0:00:08.4]} 49... Kxh7 {[%clk
0:00:05.8]} 50. Qa6 {[%clk 0:00:07.9]} 50... Qc7 {[%clk 0:00:04.7]} 51. Qxe6
{[%clk 0:00:07.8]} 51... Kg7 {[%clk 0:00:04.6]} 52. e4 {[%clk 0:00:05.7]} 52...
Qe5 {[%clk 0:00:04.5]} 53. Qg4+ {[%clk 0:00:05.3]} 53... Qg5 {[%clk 0:00:04.3]}
54. Qd7+ {[%clk 0:00:05.4]} 54... Kg6 {[%clk 0:00:03.9]} 55. Kg2 {[%clk
0:00:05.9]} 55... Qe5 {[%clk 0:00:04]} 56. Kf3 {[%clk 0:00:05.4]} 56... Qh5+
{[%clk 0:00:03.9]} 57. Ke3 {[%clk 0:00:04.9]} 57... Qc5+ {[%clk 0:00:04.3]} 58.
Qd4 {[%clk 0:00:04]} 58... Qc1+ {[%clk 0:00:04.9]} 59. Qd2 {[%clk 0:00:03.9]}
59... Qc5+ {[%clk 0:00:05.2]} 60. Ke2 {[%clk 0:00:03.6]} 60... a4 {[%clk
0:00:05.2]} 61. Qd3 {[%clk 0:00:03]} 61... a3 {[%clk 0:00:05.1]} 62. Qb3 {[%clk
0:00:03.3]} 62... Qd4 {[%clk 0:00:04.7]} 63. Qxa3 {[%clk 0:00:03.1]} 63... Qxe4+
{[%clk 0:00:05.1]} 64. Qe3 {[%clk 0:00:03.5]} 64... Qd5 {[%clk 0:00:05]} 65.
Qd3+ {[%clk 0:00:03.6]} 65... Qf5 {[%clk 0:00:05.5]} 66. Qxf5+ {[%clk
0:00:03.2]} 66... Kxf5 {[%clk 0:00:06.4]} 67. Kf3 {[%clk 0:00:03.6]} 67... Kg5
{[%clk 0:00:06.9]} 68. Ke3 {[%clk 0:00:03.7]} 68... Kg4 {[%clk 0:00:07.1]} 69.
Ke4 {[%clk 0:00:04.2]} 69... Kg5 {[%clk 0:00:07.6]} 70. f3 {[%clk 0:00:04.1]}
70... Kg6 {[%clk 0:00:08]} 71. Kf4 {[%clk 0:00:04.2]} 71... Kg7 {[%clk
0:00:07.9]} 72. Kf5 {[%clk 0:00:04.5]} 72... Kf7 {[%clk 0:00:08.7]} 73. g4
{[%clk 0:00:05.2]} 73... Kg7 {[%clk 0:00:09.1]} 74. Ke6 {[%clk 0:00:05.7]} 74...
Kg6 {[%clk 0:00:09.6]} 75. f4 {[%clk 0:00:06.3]} 75... Kg7 {[%clk 0:00:09.9]}
76. f5 {[%clk 0:00:06.8]} 76... Kh6 {[%clk 0:00:09.8]} 77. Kxf6 {[%clk
0:00:07.2]} 77... Kh7 {[%clk 0:00:10.7]} 78. g5 {[%clk 0:00:07.7]} 78... Kg8
{[%clk 0:00:11.6]} 1-0